Cogmind - Beta 10.2 @@@ ROGUE MODE // 2021.07.18 @ 11:05:48 Player: kasaphescent Result: Destroyed by Alpha 7 with Multirail Performance ------------- Evolutions (8) 4000 Regions Visited (16) 3200 Robots Destroyed (56) 280 Value Destroyed (2278) 2278 Prototype IDs (45) 900 Alien Tech Used (2) 400 Bonus (2600) 2600 TOTAL SCORE: 13658 Bonus ------- Triggered Max Security 2000 Aligned with FarCom 300 Met Data Miner 300 Cogmind --------- Core Integrity 0/1450 Matter 157/300 Energy 99/100 System Corruption 5% Temperature Cool (0) Movement Core (50) Location -2/Section 7 Parts ------- > --- POWER (2) -------- (None) > --- PROPULSION (4) --- (None) > --- UTILITY (13) ----- (None) > --- WEAPON (4) ------- (None) > --- INVENTORY (4) ---- Enhanced Quantum Rifle Enhanced Quantum Rifle Peak State ------------ > --- POWER ------------ Light Quantum Reactor > --- PROPULSION ------- Flying Fortress v7 > --- UTILITY ---------- Improved Cooling System Improved Cooling System High-capacity Storage Unit Structural Scanner Improved Targeting Computer Improved Targeting Computer Advanced Targeting Computer Energy Filter Maneuvering Thrusters Phase Armor Experimental Thermal Shield > --- WEAPON ----------- Chainsword Chainsword Power Sword Plasma Lance > --- INVENTORY -------- Light Quantum Reactor Combat Airjet Antigrav System Improved Antigrav System Improved Gyrokinetic Inverter Improved Gyrokinetic Inverter Enhanced Quantum Rifle Enhanced Quantum Rifle Heavy Neutron Cannon Hardcell Cannon Linear Accelerator Rocket Launcher [Rating: 131] Favorites ----------- Power Light Fission Core Engine Heavy Ion Engine Power Core Light Fission Core Reactor Light Quantum Reactor Propulsion Flying Fortress v7 Treads Biometal Heavy Treads Wheel Compact Wheel Hover Unit Combat Airjet Flight Unit Flying Fortress v7 Utility Improved Cooling System Device Improved Cooling System Storage High-capacity Storage Unit Processor Improved Targeting Computer Protection Improved Medium Armor Plating Artifact Phase Armor Weapon Plasma Cannon Energy Gun Gatling Laser Energy Cannon Plasma Cannon Ballistic Gun Assault Rifle Ballistic Cannon Hardcell Cannon Launcher Mini Grenade Launcher Special Weapon Improved Plasma Cutter Impact Weapon Powered Hammer Slashing Weapon Chainsword Piercing Weapon Plasma Lance Build | -11 -10 -10 -10 -9 -8 -7 -7 -7 -6 -6 -5 -4 -3 -2 -2 -2 ------- Run | Scr Mat Min Exi Min Mat Fac Low Dat Pro Fac Fac Fac Res Res Qua Sec Slots Evolved 16 | . . . . . 4 2 . . . 2 2 2 2 2 . . Power 1 | . . . . . . . . . . 1 . . . . . . Propulsion 2 | . . . . . 2 . . . . . . . . . . . Utility 11 | . . . . . . 2 . . . 1 2 2 2 2 . . Weapon 2 | . . . . . 2 . . . . . . . . . . . Parts Attached 132 | 7 5 14 3 1 9 27 . . 2 16 4 2 20 9 10 3 Power 20 | 1 1 2 . . 1 2 . . 1 6 . . 1 2 3 . Engine 10 | 1 1 2 . . . 2 . . . 4 . . . . . . Core 5 | . . . . . 1 . . . 1 2 . . 1 . . . Reactor 5 | . . . . . . . . . . . . . . 2 3 . Propulsion 14 | 2 . 4 . . 1 . . . . . . . . . 5 2 Treads 1 | . . . . . . . . . . . . . . . . 1 Leg . | . . . . . . . . . . . . . . . . . Wheel 2 | 2 . . . . . . . . . . . . . . . . Hover 10 | . . 4 . . . . . . . . . . . . 5 1 Flight 1 | . . . . . 1 . . . . . . . . . . . Utility 36 | 2 3 3 2 . . 7 . . . 4 2 2 7 3 1 . Device 18 | . 1 1 . . . 4 . . . 3 1 1 4 3 . . Storage 6 | 2 2 . 2 . . . . . . . . . . . . . Processor 3 | . . . . . . . . . . . 1 1 1 . . . Hackware . | . . . . . . . . . . . . . . . . . Protection 8 | . . 2 . . . 3 . . . 1 . . 2 . . . Artifact 1 | . . . . . . . . . . . . . . . 1 . Weapon 62 | 2 1 5 1 1 7 18 . . 1 6 2 . 12 4 1 1 Energy Gun 19 | 1 . . . 1 2 10 . . 1 4 . . . . . . Energy Cannon 24 | . 1 2 1 . 3 4 . . . 2 1 . 9 1 . . Ballistic Gun 3 | 1 . 1 . . . 1 . . . . . . . . . . Ballistic Cannon 1 | . . . . . . . . . . . . . 1 . . . Launcher 6 | . . 2 . . 1 1 . . . . . . 1 . 1 . Special Weapon 1 | . . . . . . . . . . . 1 . . . . . Impact Weapon 2 | . . . . . . 2 . . . . . . . . . . Slashing Weapon 5 | . . . . . 1 . . . . . . . . 3 . 1 Piercing Weapon 1 | . . . . . . . . . . . . . 1 . . . Special Melee Weapon . | . . . . . . . . . . . . . . . . . Unidentified Prototypes 11 | . . 1 . . . 4 . . . 1 . . 3 . 2 . Parts Lost 31 | . . 7 . . 2 1 . . 1 1 . . 9 . 7 3 Power 6 | . . . . . . 1 . . . . . . 3 . 2 . Propulsion 7 | . . 3 . . . . . . . . . . . . 2 2 Utility 7 | . . 1 . . . . . . . . . . 4 . 2 . Weapon 11 | . . 3 . . 2 . . . 1 1 . . 2 . 1 1 Highest Loss Streak 7 | . . 5 . . 1 1 . . 1 1 . . 3 . 7 3 Average Slot Usage (%) 72 | . 100 93 96 100 67 75 76 76 75 62 68 67 62 61 58 4 Engine 6 | . 14 14 14 14 . 6 7 7 3 7 5 5 . . . . Core 2 | . . . . . 8 . . . 3 4 5 5 7 . . . Wheel 1 | . 28 8 . . . . . . . . . . . . . . Hover 4 | . . 17 28 28 . . . . . . . . . . 3 . Flight 4 | . . . . . 9 7 7 7 7 6 5 5 4 4 2 . Device 13 | . 1 5 . . . 14 15 15 15 21 29 30 22 20 19 . Storage 8 | . 26 14 14 14 9 7 7 7 7 6 5 5 4 4 3 . Processor 2 | . . . . . . . . . . . 5 5 10 13 11 . Protection 5 | . . 8 14 14 9 7 7 7 7 4 . . 2 . . . Energy Gun 6 | . 2 . . 7 10 12 23 23 22 5 . . . . . . Energy Cannon 7 | . 11 9 10 14 14 11 7 7 7 3 4 5 3 . . . Ballistic Gun 1 | . 14 8 . . . . . . . . . . . . . . Launcher 1 | . . 5 14 6 . . . . . . . . . . . . Slashing Weapon 1 | . . . . . 6 1 . . . . . . . 9 8 1 Naked Turns 57 | . . . . . . . . . . . . . . . 33 24 Heaviest Build 72 | 15 23 22 43 45 60 70 70 70 70 71 70 71 72 72 72 3 Greatest Support 88 | 26 26 30 30 30 72 72 72 72 72 72 72 72 88 72 72 3 Greatest Overweight (x) 1 | . . 1 1 1 . . . . . . . . . . . . Average Overweight (x) . | . . . . 1 . . . . . . . . . . . . Largest Inventory Capacity 12 | 8 10 8 12 12 12 12 12 12 12 12 12 12 12 12 12 4 Average Capacity 11 | 5 8 8 9 12 12 12 12 12 12 12 12 12 12 12 10 4 Most Carried 12 | 6 8 8 10 11 12 12 12 12 12 12 12 12 12 12 12 4 Average Carried 10 | 4 7 6 8 10 10 11 12 12 11 11 11 11 11 11 10 3 Final Capacity 12 | 8 8 8 12 12 12 12 12 12 12 12 12 12 12 12 4 4 Final Carried 12 | 6 8 6 10 11 10 12 12 12 12 11 12 12 12 12 4 2 Class Distribution -------------------- 65% | Mutant 12% | Scavenger-Mutant 11% | Tank 10% | Skirmisher Dominant Class ---------------- Mutant | -10/Materials Scavenger-Mutant | -10/Mines Scavenger-Mutant | -10/Exiles Mutant | -9/Mines Mutant | -8/Materials Skirmisher | -7/Factory Tank | -7/Lower Caves Tank | -7/Data Miner Tank | -6/Proximity Caves Mutant | -6/Factory Mutant | -5/Factory Mutant | -4/Factory Mutant | -3/Research Mutant | -2/Research Mutant | -2/Quarantine Mutant | -2/Section 7 Resources | -11 -10 -10 -10 -9 -8 -7 -7 -7 -6 -6 -5 -4 -3 -2 -2 -2 ----------- Run | Scr Mat Min Exi Min Mat Fac Low Dat Pro Fac Fac Fac Res Res Qua Sec Matter Collected 1797 | 276 101 266 . 21 . 401 11 . 20 130 60 . 370 62 79 . Remotely . | . . . . . . . . . . . . . . . . . Salvage Created 2909 | 100 226 124 . . 28 457 51 . 201 443 83 . 1055 62 79 . Parts 125 | 3 12 4 . . 7 27 . . 3 26 3 . 34 4 2 . Haulers Intercepted 3 | . 1 . . . . 1 . . . . . . 1 . . . Recyclers Shooed 4 | . 1 . . . . . . . . . . . 3 . . . Parts Field Recycled . | . . . . . . . . . . . . . . . . . Retrieved Matter . | . . . . . . . . . . . . . . . . . Parts Self-Destructed 3 | . . . . . . . . . 3 . . . . . . . Prevented . | . . . . . . . . . . . . . . . . . Kills | -11 -10 -10 -10 -9 -8 -7 -7 -7 -6 -6 -5 -4 -3 -2 -2 -2 ------- Run | Scr Mat Min Exi Min Mat Fac Low Dat Pro Fac Fac Fac Res Res Qua Sec Combat Hostiles Destroyed 47 | . 4 11 . . 3 9 . . 3 6 1 . 10 . . . Guns 6 | . 1 . . . . 4 . . 1 . . . . . . . Cannons 24 | . 3 3 . . 1 2 . . 2 6 1 . 6 . . . AOE 17 | . . 8 . . 2 3 . . . . . . 4 . . . Classes Destroyed 17 | 1 3 2 . . . 6 1 . 1 . . . 1 1 1 . Worker 2 | . . . . . . 1 . . . . . . 1 . . . Builder 2 | . . . . . . 1 . . . . . . . 1 . . Hauler 3 | . 1 . . . . 1 . . . . . . 1 . . . Recycler 6 | 1 1 . . . . . . . . 1 . . 3 . . . Mechanic 1 | . . . . . . . . . . . . . . 1 . . Watcher 3 | . . . . . . . . . . . . . 3 . . . Swarmer 9 | . 3 . . . 3 3 . . . . . . . . . . Grunt 8 | . 1 . . . . 1 . . . 1 . . 5 . . . Brawler 1 | . . . . . . 1 . . . . . . . . . . Duelist 2 | . . . . . . 1 . . 1 . . . . . . . Researcher 1 | . . . . . . . . . . . . . . . 1 . Sentry 6 | . . . . . . 2 . . 1 2 1 . . . . . Demolisher 2 | . . 2 . . . . . . . . . . . . . . Hunter 1 | . . . . . . . . . 1 . . . . . . . Programmer 9 | . . . . . . 1 . . . 3 . . 5 . . . Samaritan 2 | . . . . . . . 1 . 1 . . . . . . . Assembled 9 | . . 9 . . . . . . . . . . . . . . Best Kill Streak 7 | 1 4 6 . . 2 3 . . 2 2 1 . 7 1 1 . Combat Bots Only 6 | . 3 6 . . 2 3 . . 2 2 1 . 5 . . . Max Kills in Single Turn 2 | 1 2 1 . . 2 2 1 . 1 1 1 . 2 1 1 . Gunslinging . | . . . . . . . . . . . . . . . . . Exploded 2 | . . 1 . . 2 1 . . . . . . 1 . . . Melee . | . . . . . . . . . . . . . . . . . Uniques/NPCs Destroyed . | . . . . . . . . . . . . . . . . . Combat | -11 -10 -10 -10 -9 -8 -7 -7 -7 -6 -6 -5 -4 -3 -2 -2 -2 -------- Run | Scr Mat Min Exi Min Mat Fac Low Dat Pro Fac Fac Fac Res Res Qua Sec Damage Taken 6876 | . 130 607 . . 372 354 . . 208 314 68 . 1962 46 809 2006 Core 2131 | . 47 120 . . 45 52 . . 41 30 20 . 322 . 182 1272 Absorbed by Shields 71 | . . . . . . . . . . . . . 71 . . . Core Remaining (%) 84 | 100 . . . 33 91 . . . 86 96 98 100 75 . . . Volleys Fired 312 | 2 17 20 . . 7 23 9 . 14 58 13 . 149 . . . Largest 4 | 2 2 2 . . 3 4 4 . 4 2 1 . 2 . . . Hottest 292 | 60 88 88 . . 200 292 249 . 249 140 80 . 110 . . . Shots Fired 425 | 4 34 27 . . 13 56 18 . 49 60 13 . 151 . . . Gun 134 | 4 17 7 . . 4 29 13 . 37 23 . . . . . . Cannon 264 | . 17 7 . . 8 25 5 . 12 37 13 . 140 . . . Launcher 25 | . . 13 . . 1 2 . . . . . . 9 . . . Special 2 | . . . . . . . . . . . . . 2 . . . Kinetic 49 | 2 17 7 . . . . . . . . . . 23 . . . Thermal 325 | . 17 7 . . 11 42 18 . 49 60 13 . 108 . . . Explosive 25 | . . 13 . . 1 2 . . . . . . 9 . . . Electromagnetic 26 | 2 . . . . 1 12 . . . . . . 11 . . . Robot Hit Streak 28 | 1 4 5 . . 7 13 28 . 23 6 9 . 21 . . . Robot Miss Streak 4 | 2 1 2 . . 4 3 1 . 3 4 1 . 1 . . . Penetration Max . | . . . . . . . . . . . . . . . . . Secondary Targets . | . . . . . . . . . . . . . . . . . Shots Hit Robots 238 | 1 22 12 . . 8 44 10 . 38 21 10 . 64 6 2 . Core Hits 130 | 1 7 17 . . 4 23 4 . 13 12 4 . 42 2 1 . Critical Hits 1 | . . . . . . . . . . . . . 1 . . . Critical Kills 1 | . . . . . . . . . . . . . 1 . . . Critical Parts Destroyed . | . . . . . . . . . . . . . . . . . Melee Attacks 41 | . . . . . 3 10 . . . . . . . 8 14 6 Impact 10 | . . . . . . 10 . . . . . . . . . . Slashing 19 | . . . . . 3 . . . . . . . . 5 5 6 Piercing 12 | . . . . . . . . . . . . . . 3 9 . Sneak Attacks 3 | . . . . . . . . . . . . . . 2 1 . Combat Hostiles . | . . . . . . . . . . . . . . . . . Follow-up Attacks 1 | . . . . . . . . . . . . . . 1 . . Damage Inflicted 8831 | 40 388 744 . . 204 1130 211 . 591 686 380 . 3768 451 238 . Guns 1316 | 40 123 27 . . 23 405 160 . 435 103 . . . . . . Cannons 4504 | . 265 102 . . 75 224 51 . 156 583 380 . 2668 . . . Explosions 2181 | . . 615 . . 106 360 . . . . . . 1100 . . . Melee 830 | . . . . . . 141 . . . . . . . 451 238 . Ramming . | . . . . . . . . . . . . . . . . . Kinetic 580 | 28 123 27 . . . . . . . . . . 402 . . . Thermal 4680 | . 265 102 . . 82 642 211 . 591 686 380 . 1721 . . . Explosive 2023 | . . 615 . . 106 202 . . . . . . 1100 . . . Electromagnetic 718 | 12 . . . . 16 145 . . . . . . 545 . . . Impact 141 | . . . . . . 141 . . . . . . . . . . Slashing 250 | . . . . . . . . . . . . . . 250 . . Piercing 439 | . . . . . . . . . . . . . . 201 238 . Highest Corruption 11 | . . . . . . . . . . 1 . . 11 . 2 5 Average Corruption 3 | . . . . . . . . . . 1 . . 7 . 1 2 Corruption Purged . | . . . . . . . . . . . . . . . . . Effects 26 | . . . . . . . . . . 2 . . 21 . . 3 Message Errors 6 | . . . . . . . . . . . . . 5 . . 1 Matter Fused 2 | . . . . . . . . . . . . . 1 . . 1 Heat Flow Errors 3 | . . . . . . . . . . . . . 2 . . 1 Energy Discharges 2 | . . . . . . . . . . . . . 2 . . . Data Loss (minor) 3 | . . . . . . . . . . 2 . . 1 . . . Misdirections 1 | . . . . . . . . . . . . . 1 . . . Targeting Errors 9 | . . . . . . . . . . . . . 9 . . . Overload Shots 25 | . . . . . . . 4 . 2 19 . . . . . . Effects 1 | . . . . . . . . . . 1 . . . . . . Meltdown 1 | . . . . . . . . . . 1 . . . . . . Overflow Damage 546 | . . 11 . . . 37 22 . . 15 3 . 275 118 65 . Projectiles 289 | . . . . . . . 22 . . 15 3 . 249 . . . Explosions 64 | . . 11 . . . 27 . . . . . . 26 . . . Melee 193 | . . . . . . 10 . . . . . . . 118 65 . Knockbacks 6 | . . . . . . 1 . . . . . . 5 . . . Impact 1 | . . . . . . 1 . . . . . . . . . . Kinetic 5 | . . . . . . . . . . . . . 5 . . . Secondary . | . . . . . . . . . . . . . . . . . Self-Inflicted Damage 48 | . . 27 . . . 21 . . . . . . . . . . Shots 2 | . . 1 . . . 1 . . . . . . . . . . Rammed . | . . . . . . . . . . . . . . . . . Targets Rammed . | . . . . . . . . . . . . . . . . . Kicked . | . . . . . . . . . . . . . . . . . Crushed . | . . . . . . . . . . . . . . . . . Highest Temperature 384 | . 218 81 . . 384 376 30 . 72 . . . 255 . . 221 Average Temperature 83 | . 65 26 . . 155 57 20 . 29 . . . 126 . . 123 Received Heat Transfer 520 | . 51 20 . . 48 45 . . 36 57 18 . 137 . 63 45 Effects 2 | . . . . . 2 . . . . . . . . . . . Shutdowns 1 | . . . . . 1 . . . . . . . . . . . Energy Bleed 1 | . . . . . 1 . . . . . . . . . . . Siege Activations . | . . . . . . . . . . . . . . . . . Robots Corrupted 2 | . . . . . . . . . . . . . 2 . . . Combat Hostiles . | . . . . . . . . . . . . . . . . . Parts Fried 9 | . . . . . . 1 . . . . . . 8 . . . Impact Corruptions 1 | . . . . . . 1 . . . . . . . . . . Robots Melted . | . . . . . . . . . . . . . . . . . Combat Hostiles . | . . . . . . . . . . . . . . . . . Parts Melted 20 | . 1 1 . . . . 2 . 4 5 2 . 5 . . . Heat Transferred 6640 | . 481 185 . . 121 1055 448 . 1232 1074 600 . 1444 . . . Parts Sabotaged . | . . . . . . . . . . . . . . . . . Parts Stolen . | . . . . . . . . . . . . . . . . . Parts Stripped . | . . . . . . . . . . . . . . . . . Power Chain Reactions 2 | . . . . . . 2 . . . . . . . . . . Missiles Intercepted . | . . . . . . . . . . . . . . . . . Alert | -11 -10 -10 -10 -9 -8 -7 -7 -7 -6 -6 -5 -4 -3 -2 -2 -2 ------- Run | Scr Mat Min Exi Min Mat Fac Low Dat Pro Fac Fac Fac Res Res Qua Sec Peak Influence 1948 | 5 130 110 . . 240 177 . . . 190 131 63 239 161 1862 1948 Initial 1100 | . 3 50 . . . 109 . . . . 53 63 33 108 90 1100 Average 206 | 1 35 65 . . 88 73 . . . 57 83 63 131 126 1686 1654 Maximum Alert Level 5 | . . . . . 1 . . . . . . . 1 . 5 5 Low Security (%) 89 | 100 100 100 . 100 92 100 . . . 100 100 100 91 100 . . Level 1 2 | . . . . . 7 . . . . . . . 8 . . . Level 2 . | . . . . . . . . . . . . . . . . . Level 3 . | . . . . . . . . . . . . . . . . . Level 4 . | . . . . . . . . . . . . . . . . . Level 5 . | . . . . . . . . . . . . . . . . . High Security . | . . . . . . . . . . . . . . . . . Max Security 8 | . . . . . . . . . . . . . . . 99 99 Squads Dispatched 30 | . . . . . 3 2 . . . 2 1 . 1 3 12 6 Investigation 2 | . . . . . 1 . . . . . 1 . . . . . Extermination 5 | . . . . . . 1 . . . 2 . . 1 1 . . Reinforcement 5 | . . . . . 2 1 . . . . . . . 2 . . Assault 18 | . . . . . . . . . . . . . . . 12 6 Garrison . | . . . . . . . . . . . . . . . . . Intercept . | . . . . . . . . . . . . . . . . . Construction Impeded . | . . . . . . . . . . . . . . . . . Haulers Reinforced . | . . . . . . . . . . . . . . . . . Stealth | -11 -10 -10 -10 -9 -8 -7 -7 -7 -6 -6 -5 -4 -3 -2 -2 -2 --------- Run | Scr Mat Min Exi Min Mat Fac Low Dat Pro Fac Fac Fac Res Res Qua Sec Distress Signals 6 | . . . . . 1 1 . . . 1 . . 2 1 . . Communications Jammed . | . . . . . . . . . . . . . . . . . Distress Signals . | . . . . . . . . . . . . . . . . . Times Spotted 179 | . 5 17 . . 14 16 . . 4 13 1 . 25 5 32 47 Peak Tracking Total 34 | . 3 8 . . 9 4 . . 3 3 1 . 6 6 26 34 Tactical Retreats 24 | . 1 2 . . 5 1 . . 1 2 . . 2 2 4 4 Traps | -11 -10 -10 -10 -9 -8 -7 -7 -7 -6 -6 -5 -4 -3 -2 -2 -2 ------- Run | Scr Mat Min Exi Min Mat Fac Low Dat Pro Fac Fac Fac Res Res Qua Sec Traps Triggered 7 | . . . . . 1 1 . . . . . . 4 1 . . Indirectly . | . . . . . . . . . . . . . . . . . Trap Hack Attempts . | . . . . . . . . . . . . . . . . . Triggered . | . . . . . . . . . . . . . . . . . Disarmed . | . . . . . . . . . . . . . . . . . Reprogrammed . | . . . . . . . . . . . . . . . . . Reused 1 | . . 1 . . . . . . . . . . . . . . Traps Extracted . | . . . . . . . . . . . . . . . . . Installed 2 | . . 2 . . . . . . . . . . . . . . Triggered . | . . . . . . . . . . . . . . . . . Exploded 2 | . . . . . 2 . . . . . . . . . . . Machines | -11 -10 -10 -10 -9 -8 -7 -7 -7 -6 -6 -5 -4 -3 -2 -2 -2 ---------- Run | Scr Mat Min Exi Min Mat Fac Low Dat Pro Fac Fac Fac Res Res Qua Sec Machines Disabled 5 | . . . . . . . . . . 1 . . 2 . 2 . Max in Single Turn 1 | . . . . . . . . . . 1 . . 1 . 1 . Machines Sabotaged . | . . . . . . . . . . . . . . . . . Garrisons Compromised . | . . . . . . . . . . . . . . . . . Overloaded Fab Kills . | . . . . . . . . . . . . . . . . . Fab Network Shutdowns . | . . . . . . . . . . . . . . . . . Hacking | -11 -10 -10 -10 -9 -8 -7 -7 -7 -6 -6 -5 -4 -3 -2 -2 -2 --------- Run | Scr Mat Min Exi Min Mat Fac Low Dat Pro Fac Fac Fac Res Res Qua Sec Machines Accessed 30 | . . . 1 . . 9 . 4 . 5 3 . 5 3 . . Terminals 18 | . . . . . . 7 . . . 3 1 . 4 3 . . Fabricators 2 | . . . . . . 1 . . . . 1 . . . . . Repair Stations 2 | . . . . . . . . . . . 1 . 1 . . . Recycling Units . | . . . . . . . . . . . . . . . . . Scanalyzers 2 | . . . . . . 1 . . . 1 . . . . . . Garrison Access 1 | . . . . . . . . . . 1 . . . . . . Total Hacks 90 | . . . 1 . . 21 . 30 . 12 7 . 10 9 . . Successful 56 | . . . 1 . . 8 . 30 . 7 3 . 5 2 . . Failed 34 | . . . . . . 13 . . . 5 4 . 5 7 . . Catastrophic 8 | . . . . . . 3 . . . 2 . . 1 2 . . Database Lockouts . | . . . . . . . . . . . . . . . . . Manual 37 | . . . 1 . . 13 . . . 7 2 . 6 8 . . Terminals 41 | . . . . . . 15 . . . 9 2 . 6 9 . . Fabricators 5 | . . . . . . 3 . . . . 2 . . . . . Repair Stations 7 | . . . . . . . . . . . 3 . 4 . . . Recycling Units . | . . . . . . . . . . . . . . . . . Scanalyzers 5 | . . . . . . 3 . . . 2 . . . . . . Garrison Access 1 | . . . . . . . . . . 1 . . . . . . Terminal Hacks 38 | . . . 1 . . 2 . 30 . 3 . . 1 1 . . Record 11 | . . . . . . . . 11 . . . . . . . . Part Schematic 10 | . . . . . . . . 10 . . . . . . . . Robot Schematic 6 | . . . . . . . . 6 . . . . . . . . Prototype ID Bank 3 | . . . . . . . . 3 . . . . . . . . Level Access Points 2 | . . . . . . . . . . 1 . . 1 . . . Branch Access Points 1 | . . . . . . . . . . 1 . . . . . . Alert Level 1 | . . . . . . . . . . 1 . . . . . . Unreport Threat 2 | . . . . . . 2 . . . . . . . . . . Zone Layout 1 | . . . . . . . . . . . . . . 1 . . EX-Prototype ID Bank 1 | . . . 1 . . . . . . . . . . . . . Fabricator Hacks . | . . . . . . . . . . . . . . . . . Repair Station Hacks 4 | . . . . . . . . . . . 2 . 2 . . . Scan Component 2 | . . . . . . . . . . . 1 . 1 . . . Repair 2 | . . . . . . . . . . . 1 . 1 . . . Recycling Unit Hacks . | . . . . . . . . . . . . . . . . . Scanalyzer 4 | . . . . . . 2 . . . 2 . . . . . . Insert Component 2 | . . . . . . 1 . . . 1 . . . . . . Analyze 2 | . . . . . . 1 . . . 1 . . . . . . Garrison Access Hacks . | . . . . . . . . . . . . . . . . . Unauthorized Hacks 10 | . . . . . . 4 . . . 2 1 . 2 1 . . Terminals 10 | . . . . . . 4 . . . 2 1 . 2 1 . . Botnet 10 | . . . . . . 4 . . . 2 1 . 2 1 . . Fabricators . | . . . . . . . . . . . . . . . . . Repair Stations . | . . . . . . . . . . . . . . . . . Recycling Units . | . . . . . . . . . . . . . . . . . Scanalyzers . | . . . . . . . . . . . . . . . . . Garrison Access . | . . . . . . . . . . . . . . . . . Data Cores Recovered . | . . . . . . . . . . . . . . . . . Used . | . . . . . . . . . . . . . . . . . Hacking Detections 23 | . . . . . . 9 . . . 5 3 . 3 3 . . Full Trace Events 1 | . . . . . . . . . . . 1 . . . . . Feedback Events . | . . . . . . . . . . . . . . . . . Feedback Blocked . | . . . . . . . . . . . . . . . . . Robot Schematics Acquired 6 | . . . . . . . . 6 . . . . . . . . Robots Built . | . . . . . . . . . . . . . . . . . Matter . | . . . . . . . . . . . . . . . . . Time . | . . . . . . . . . . . . . . . . . Total Robot Build Rating . | . . . . . . . . . . . . . . . . . Part Schematics Acquired 12 | . . . . . . 1 . 10 . 1 . . . . . . Parts Built . | . . . . . . . . . . . . . . . . . Matter . | . . . . . . . . . . . . . . . . . Time . | . . . . . . . . . . . . . . . . . Total Part Build Rating . | . . . . . . . . . . . . . . . . . Parts Repaired 2 | . . . . . . . . . . . 1 . 1 . . . Time 88 | . . . . . . . . . . . 44 . 44 . . . Parts Recycled . | . . . . . . . . . . . . . . . . . Recycled Matter . | . . . . . . . . . . . . . . . . . Retrieved Matter . | . . . . . . . . . . . . . . . . . Retrieved Components . | . . . . . . . . . . . . . . . . . Parts Scanalyzed 2 | . . . . . . 1 . . . 1 . . . . . . Part Schematics Acquired 2 | . . . . . . 1 . . . 1 . . . . . . Parts Damaged . | . . . . . . . . . . . . . . . . . Bothacking | -11 -10 -10 -10 -9 -8 -7 -7 -7 -6 -6 -5 -4 -3 -2 -2 -2 ------------ Run | Scr Mat Min Exi Min Mat Fac Low Dat Pro Fac Fac Fac Res Res Qua Sec Used RIF Installer . | . . . . . . . . . . . . . . . . . Robots Hacked . | . . . . . . . . . . . . . . . . . Non-combat . | . . . . . . . . . . . . . . . . . Combat . | . . . . . . . . . . . . . . . . . Robot Hacks Applied . | . . . . . . . . . . . . . . . . . Relay Couplers Released . | . . . . . . . . . . . . . . . . . Robots Rewired 1 | . . . . . . 1 . . . . . . . . . . Allies Hacked . | . . . . . . . . . . . . . . . . . Hacks Repelled . | . . . . . . . . . . . . . . . . . Allies | -11 -10 -10 -10 -9 -8 -7 -7 -7 -6 -6 -5 -4 -3 -2 -2 -2 -------- Run | Scr Mat Min Exi Min Mat Fac Low Dat Pro Fac Fac Fac Res Res Qua Sec Total Allies 3 | . . 1 . . . 1 . . 1 . . . . . . . Largest Group 1 | . . 1 . . . 1 . . 1 . . . . . . . Highest-Rated Group 94 | . . 31 . . . 21 . . 94 . . . . . . . Highest-Rated Ally 94 | . . 31 . . . 21 . . 94 . . . . . . . Total Orders . | . . . . . . . . . . . . . . . . . Ally Attacks 4 | . . . . . . 3 . . 1 . . . . . . . Total Damage 108 | . . . . . . 108 . . . . . . . . . . Kills . | . . . . . . . . . . . . . . . . . Allies Corrupted . | . . . . . . . . . . . . . . . . . Allies Melted . | . . . . . . . . . . . . . . . . . Intel | -11 -10 -10 -10 -9 -8 -7 -7 -7 -6 -6 -5 -4 -3 -2 -2 -2 ------- Run | Scr Mat Min Exi Min Mat Fac Low Dat Pro Fac Fac Fac Res Res Qua Sec Robot Analysis Total . | . . . . . . . . . . . . . . . . . Derelict Logs Recovered 5 | . . 2 . . . . 2 . 1 . . . . . . . Drone Launches . | . . . . . . . . . . . . . . . . . Drone Recoveries . | . . . . . . . . . . . . . . . . . Exploration | -11 -10 -10 -10 -9 -8 -7 -7 -7 -6 -6 -5 -4 -3 -2 -2 -2 ------------- Run | Scr Mat Min Exi Min Mat Fac Low Dat Pro Fac Fac Fac Res Res Qua Sec Turns Passed 6290 | 69 262 428 407 383 379 778 291 39 429 881 208 58 987 275 228 188 Spaces Moved 7269 | 52 203 452 552 290 330 989 456 79 667 1008 205 107 833 362 346 338 Core 402 | 1 . . . . . . . . . . . . . . 63 338 Treads . | . . . . . . . . . . . . . . . . . Legs . | . . . . . . . . . . . . . . . . . Wheels 407 | 51 203 153 . . . . . . . . . . . . . . Hover 1203 | . . 299 552 290 . . . . . . . . . . 62 . Flight 5257 | . . . . . 330 989 456 79 667 1008 205 107 833 362 221 . Fastest Speed 50 | 50 90 66 66 131 50 50 50 50 50 50 50 50 50 50 50 50 Average Speed 57 | 85 90 75 71 131 50 50 50 50 50 50 50 50 50 50 51 50 Slowest Speed 131 | 90 90 116 131 131 50 50 50 50 50 50 50 50 50 50 62 50 Overloaded Moves . | . . . . . . . . . . . . . . . . . Propulsion Burnouts . | . . . . . . . . . . . . . . . . . Robots Hopped 31 | . . . . . 5 6 . . 1 14 . . 3 2 . . Cave-ins Triggered . | . . . . . . . . . . . . . . . . . Exploration Rate (%) 40 | 4 26 70 90 74 30 24 61 69 86 25 7 4 26 12 55 23 Regions Visited 16 Branch Regions 8 Pre-discovered Areas 2 | . . 1 . . . . . 1 . . . . . . . . Known Exits Taken 2 | . . . . . . . . . . 1 . . 1 . . . Unknown Exits Taken 14 | 1 1 1 1 1 1 1 1 1 1 . 1 1 . 1 1 . Scrap Searched 6 | . . 3 . 1 . . 1 . 1 . . . . . . . Spaces Dug 109 | . . . . . 9 4 2 . 2 27 1 . 53 1 4 6 Terrain Destroyed 286 | . . 108 . . 10 17 4 . 2 35 1 . 98 1 4 6 Melee 16 | . . . . . 1 4 . . . . . . . 1 4 6 Projectile 111 | . . . . . 1 . 4 . 2 35 1 . 68 . . . AOE 159 | . . 108 . . 8 13 . . . . . . 30 . . . Terrain Rammed . | . . . . . . . . . . . . . . . . . Walls Destroyed . | . . . . . . . . . . . . . . . . . Machines Disabled . | . . . . . . . . . . . . . . . . . Actions | -11 -10 -10 -10 -9 -8 -7 -7 -7 -6 -6 -5 -4 -3 -2 -2 -2 --------- Run | Scr Mat Min Exi Min Mat Fac Low Dat Pro Fac Fac Fac Res Res Qua Sec Total 8874 | 68 252 510 566 292 523 1216 504 78 726 1314 296 110 1244 444 384 347 Wait 954 | 2 10 11 . 1 160 121 40 . 42 222 70 . 210 57 8 . Move 7191 | 51 202 451 551 289 319 976 455 78 664 979 204 106 826 357 345 338 Hop 31 | . . . . . 5 6 . . 1 14 . . 3 2 . . Pick Up 77 | 6 7 5 6 1 9 15 . . 2 7 3 1 7 7 1 . Fast Attach 50 | 7 2 2 . . 3 8 . . . 5 2 2 8 6 4 1 Attach 45 | . . 5 1 . 4 8 . . 1 7 2 . 4 3 8 2 Detach 24 | . 1 1 . . 3 7 . . . 5 1 . 1 . 5 . Swap 40 | . 3 7 2 1 2 12 . . 1 4 . . 8 . . . Drop 85 | . 10 6 6 . 8 24 . . 1 13 1 1 5 6 4 . Fire 312 | 2 17 20 . . 7 23 9 . 14 58 13 . 149 . . . Melee 34 | . . . . . 3 10 . . . . . . . 6 9 6 Ram . | . . . . . . . . . . . . . . . . . Kick . | . . . . . . . . . . . . . . . . . Crush . | . . . . . . . . . . . . . . . . . Escape Stasis 23 | . . . . . . . . . . . . . 23 . . . Rewire 6 | . . . . . . 6 . . . . . . . . . . Trap 2 | . . 2 . . . . . . . . . . . . . . Miscellaneous . | . . . . . . . . . . . . . . . . . Route ------- -11/Scrapyard -10/Materials -10/Mines (discovered 2 exits: [*Mat] / *Exi) -10/Exiles -9/Mines -8/Materials -7/Factory -7/Lower Caves -7/Data Miner -6/Proximity Caves -6/Factory (discovered 6 exits: *Fac x4 / Low x2) -5/Factory (discovered 2 exits: [*Fac] / Ext) -4/Factory -3/Research (discovered 3 exits: *Res x3) -2/Research -2/Quarantine -2/Section 7 History --------- Turn | Location | Event 12 | -11/Scrapyard | Discovered new exit (range 14) 70 | -11/Scrapyard | Entered Materials 323 | -10/Materials | Discovered new exit (range 8) 325 | -10/Materials | Build established: Mutant 332 | -10/Materials | Entered Mines 387 | -10/Mines | Learned location of Zion (-6) 404 | -10/Mines | Received a Rocket Launcher from a helpful Derelict 432 | -10/Mines | Assembled infested the area 437 | -10/Mines | Assisted by a Guerilla fighting off Assembled 489 | -10/Mines | Core integrity fell below 50% 526 | -10/Mines | Lost 5 parts (2n1u2w) 528 | -10/Mines | Found a hidden stash of uninstalled traps 553 | -10/Mines | Found a damaged Exp. Sensor Array with a note attached 554 | -10/Mines | Found Prototype Device 554 | -10/Mines | Identified Exp. Sensor Array 728 | -10/Mines | Discovered new exit (range 5) 746 | -10/Mines | Received a Mining Laser from a helpful Derelict 756 | -10/Mines | Deemed a non-threat by the Exiles lab entrance 757 | -10/Mines | Discovered new exit (range 5) 760 | -10/Mines | Entered Exiles 787 | -10/Exiles | Met 8R-AWN 796 | -10/Exiles | Met EX-HEX 815 | -10/Exiles | Met EX-BIN 823 | -10/Exiles | Aligned with FarCom system 824 | -10/Exiles | Given EX-Vault access code 837 | -10/Exiles | Build established: Scavenger-Mutant 848 | -10/Exiles | Opened EX-Vault 857 | -10/Exiles | Found Flying Fortress v7 870 | -10/Exiles | Warned to stay clear of 0b10 Research branches 889 | -10/Exiles | Met EX-DEC 1010 | -10/Exiles | Visited The Gauntlet 1131 | -10/Exiles | Discovered new exit (range 11) 1167 | -10/Exiles | Left Exiles lab with Flying Fortress v7 1167 | -10/Exiles | Entered Mines 1546 | -9/Mines | Discovered new exit (range 2) 1550 | -9/Mines | Entered Materials 1550 | -8/Materials | Evolved 4 slots: Propulsion x2, Weapon x2 1917 | -8/Materials | Build established: Mutant 1927 | -8/Materials | Discovered new exit (range 3) 1929 | -8/Materials | Entered Factory 1929 | -7/Factory | Evolved 2 slots: Utility x2 2633 | -7/Factory | Build established: Skirmisher 2703 | -7/Factory | Discovered new exit (range 9) 2707 | -7/Factory | Entered Lower Caves 2748 | -7/Lower Caves | Learned Factory garrison access intel 2895 | -7/Lower Caves | Learned Factory emergency access door positions 2973 | -7/Lower Caves | Encountered a Warlord checkpoint 2992 | -7/Lower Caves | A Derelict revealed a hidden shortcut to meet someone special 2998 | -7/Lower Caves | Entered Data Miner 2998 | -7/Data Miner | Discovered new exit (range 6) 3008 | -7/Data Miner | Met Data Miner 3017 | -7/Data Miner | Learned location of Section 7 (-2) 3017 | -7/Data Miner | Acquired the access code to Warlord's prototype stash 3026 | -7/Data Miner | Received God Mode back door access code from Data Miner 3037 | -7/Data Miner | Entered Proximity Caves 3134 | -6/Proximity Caves | Build established: Tank 3205 | -6/Proximity Caves | Escorted by Enhanced Grunt 3209 | -6/Proximity Caves | Attracted the attention of an 0b10 checkpoint 3415 | -6/Proximity Caves | Spotted B-75 Beast 3462 | -6/Proximity Caves | Discovered new exit (range 8) 3466 | -6/Proximity Caves | Entered Factory 3466 | -6/Factory | Evolved 2 slots: Power x1, Utility x1 3468 | -6/Factory | Loaded intel: 4 garrison access locations 3761 | -6/Factory | Build established: Mutant 4198 | -6/Factory | Identified exit to Lower Caves 4293 | -6/Factory | Identified exit to Factory 4347 | -6/Factory | Entered another Factory area 4347 | -5/Factory | Evolved 2 slots: Utility x2 4348 | -5/Factory | Identified exit to Extension 4504 | -5/Factory | Incoming investigation squad redirected 4529 | -5/Factory | Repaired Plasma Cannon 4545 | -5/Factory | Discovered new exit (range 11) 4555 | -5/Factory | Entered another Factory area 4555 | -4/Factory | Evolved 2 slots: Utility x2 4604 | -4/Factory | Discovered new exit (range 7) 4613 | -4/Factory | Entered Research 4613 | -3/Research | Evolved 2 slots: Utility x2 4618 | -3/Research | Identified exit to Research 4753 | -3/Research | Repaired Energy Filter 5206 | -3/Research | Found Prototype Device 5206 | -3/Research | Identified Exp. Thermal Shield 5476 | -3/Research | System corruption reached 10% 5573 | -3/Research | Lost 3 parts (1p2u) 5600 | -3/Research | Entered another Research area 5600 | -2/Research | Evolved 2 slots: Utility x2 5811 | -2/Research | Assembled infested ambush trap array 5868 | -2/Research | Discovered new exit (range 14) 5870 | -2/Research | Incoming assault squad redirected 5875 | -2/Research | Entered Quarantine 5876 | -2/Quarantine | Maximum security lockdown engaged 5897 | -2/Quarantine | Found Alien Artifact 5897 | -2/Quarantine | Identified Terrabomb 5897 | -2/Quarantine | Used Terrabomb 5904 | -2/Quarantine | Found Terrabomb 5904 | -2/Quarantine | Used Terrabomb 5960 | -2/Quarantine | Found Alien Artifact 5960 | -2/Quarantine | Identified Phase Armor 6059 | -2/Quarantine | Spotted Fortress 6070 | -2/Quarantine | Released all parts (11) 6095 | -2/Quarantine | Lost 7 parts (2p2n2u1w) 6100 | -2/Quarantine | Discovered new exit (range 6) 6103 | -2/Quarantine | Entered Section 7 6104 | -2/Section 7 | Maximum security lockdown engaged 6120 | -2/Section 7 | Spotted B-90 Cyclops 6240 | -2/Section 7 | Spotted Executioner 6240 | -2/Section 7 | Spotted Striker 6243 | -2/Section 7 | Spotted Striker 6269 | -2/Section 7 | Core integrity fell below 50% 6277 | -2/Section 7 | Spotted Alpha 7 6280 | -2/Section 7 | Spotted Alpha 7 6282 | -2/Section 7 | Core integrity fell below 20% 6291 | -2/Section 7 | Destroyed by Alpha 7 with Multirail Last Messages --------------- 06263_ System corrupted: Matter fused (-8). 06265_ Cloning Tubes disabled. 06266_ Knocked back. 06268_ Cloning Tubes disabled. 06270_ E-15 Imp destroyed. 06273_ Penetrated by Slug. 06276_ Cmb. Airjet destroyed. 06276_ Slug penetrates Wall. 06278_ System corrupted: Heat flow error (+270). 06279_ Penetrated by Slug. 06279_ Slug penetrates Wall. 06280_ Penetrated by Slug. 06280_ Slug penetrates Wall. 06281_ Penetrated by Slug. 06284_ Slug penetrates Machine. 06285_ Slug penetrates Door. 06285_ Penetrated by Slug. 06290_ Slug penetrates Machine. 06290_ Machine disabled. 06291_ Penetrated by Slug. Map ----- +----------------------------------------------------+ | ?????????????????????????????????????????????????? | | ?????????????????????????????????????????????????? | | ???????????????????????????????????????????????? | | ???????????????????????????????????????????????? | | ???????????????????????????????????????????????? | | #??????????????????????????????????????????????? | | #??????????????? ?????????????????????????????? | | #?????????????? ?????????????????????????? | | #?????????????? ??????????????????????????? | | #????????????? "??????????????????????????? | | #????????????? "??????????????????????????? | | #??????????#" """" ??????????????????????? | | #??????????#"" ????? "????????????????? | | #??????????#""" ??????? ????h?????????? | | #??????????#""" "??????? ??????????????? | | #????###?###""" "?????"" ??????????????? | | ###### ### # """""" ???????????????? | | ; ????????????????? | | p / w ?????????????????? | | hp K 7 c "??????????????????? | | h Y ;7 """????????????????? | | ######+##### # "?????? ?????????? | | ???????????###""" """"" ?????????? | | ?????????????#""" ????????? | | ?????????????#""" ????????? | | ?????????????#"" @ ????????? | | ?????????????#" ????????? | | ?????????????# """"""" """" ????????? | | ?????????????# """""""""""" ?????????? | | ?????????????###################?????????????????? | | ?????????????????????????????????????????????????? | | ?????????????????????????????????????????????????? | | ?????????????????????????????????????????????????? | | ?????????????????????????????????????????????????? | | ?????????????????????????????????????????????????? | | ?????????????????????????????????????????????????? | | ?????????????????????????????????????????????????? | | ?????????????????????????????????????????????????? | | ?????????????????????????????????????????????????? | | ?????????????????????????????????????????????????? | | ?????????????????????????????????????????????????? | | ?????????????????????????????????????????????????? | | ?????????????????????????????????????????????????? | | ?????????????????????????????????????????????????? | | ?????????????????????????????????????????????????? | | ?????????????????????????????????????????????????? | | ?????????????????????????????????????????????????? | | ?????????????????????????????????????????????????? | | ?????????????????????????????????????????????????? | | ?????????????????????????????????????????????????? | +----------------------------------------------------+ Best States ------------- Heat Dissipation 103 Energy Generation 45 Energy Capacity 340 Matter Stores 300 Matter Capacity 300 Sight Range 16 Terrain Scan Density 10 Additional Mass Support 16 Base Temperature (-) 200 Armor Coverage 225 Resistance: TH 30 Evasion (%) 70 Targeting Accuracy 20 Energy Filtering 30 Particle Charging 25 Item Schematics ----------------- Cld. Pulse Rifle | -7/Factory | Scanalyzed Combat Drone Bay | -7/Data Miner | Free Lgt. Regenerative Plating | -7/Data Miner | Free Triangulator | -7/Data Miner | Free Exp. Terrain Scanner | -7/Data Miner | Free Exp. Terrain Scan Processor | -7/Data Miner | Free Exp. Targeting Computer | -7/Data Miner | Free Tactical Coordination Suite | -7/Data Miner | Free Exp. Transmission Jammer | -7/Data Miner | Free Cloaking Device | -7/Data Miner | Free Plasma Sword | -7/Data Miner | Free Cmb. Airjet | -6/Factory | Scanalyzed Robot Schematics ------------------ S-27 Virus | -7/Data Miner | Free G-50 Soldier | -7/Data Miner | Free G-67 Veteran | -7/Data Miner | Free X-72 Disruptor | -7/Data Miner | Free P-70 Sage | -7/Data Miner | Free I-36 Angel | -7/Data Miner | Free Fabricated ------------ Nothing Alien Tech Used ----------------- Terrabomb Phase Armor Achievements -------------- None Challenges ------------ None Game ------ Seed HardcellMiningHumpback Manual? 0 Play Time 01:58:18 Cumulative 98.6 hours Start 2021.07.06 @ 20:01:07 End 2021.07.18 @ 11:05:48 Sessions 3 Manual Loads 0 Difficulty Rogue Special Mode None Game No. 61 Rogue 61 Adventurer 0 Explorer 0 Win Type - Total 1 Types 1/0/0/0/0/0/0/0/0 Lore% 46 Gallery% 60 Achievement% 41 Wizard Run 0 Options --------- ASCII 1 Keyboard 1 Movement Numpad Keybinds 0 Fullscreen 1 Font 18/SmallcapsGlow Map View 76x50 Tactical HUD 1 Map Filters NONE Filters NONE Steam 1 RUN: ad8823fc-2c17-4073-94f8-e3a8377e59fd